Cogmind - Beta 13 @@@ ROGUE MODE // 2024.05.29 @ 21:50:02 Player: Benkyo Result: Destroyed by G-67 Veteran with Plasma Rifle Performance ------------- Evolutions (7) 3500 Regions Visited (27) 5400 Robots Destroyed (389) 1945 Value Destroyed (18323) 18323 Prototype IDs (268) 5360 Alien Tech Used (11) 2200 Bonus (33057) 33057 TOTAL SCORE: 69785 Bonus ------- Triggered Max Security 2000 High Alert Combat Kills 7162 Follower Combat Kills 6415 Aligned with FarCom 300 Met Data Miner 300 Used Data Conduit 3000 Destroyed Z-Imprinter 1000 Triggered Deep Caves Wall 500 Exposed GOLEM Chamber 500 Met Warlord at Base 500 MAIN.C Attacked Warlord 500 Warlord Defense Kills 738 Found Hidden Lab 3000 Used Core Reset Matrix 3000 Scanned by Researcher 500 Pursued by Intercept 500 Integrated Exoskeleton 5000 Friendly Fire -1858 Cogmind --------- Core Integrity 0/1300 Matter 245/300 Energy 1200/1200 System Corruption 18% Temperature Cool (0) Movement Walking (30) Location -3/Section 7 Parts ------- > --- POWER (1) -------- Hybrid Antimatter Reactor > --- PROPULSION (3) --- Sigix Exoskeleton > --- UTILITY (3) ------ (None) > --- WEAPON (2) ------- Vortex Shotgun Sigix Sheargun > --- INVENTORY (5) ---- (None) Peak State ------------ > --- POWER ------------ Hybrid Antimatter Reactor Vortex Chain Reactor > --- PROPULSION ------- Centrium Heavy Treads High-density Centrium Heavy Treads > --- UTILITY ---------- Cargo Storage Unit Assembled Biocell Array Assembled Combat Suite VL-GR5's Timing Chip Assembled Alloy Armor Heavy Regenerative Plating Experimental Force Field GOLEM Unit VL-GR5's Exoskeleton "Deathgrip" Spacefold Activator > --- WEAPON ----------- Assembled Focal Cannon Assembled Focal Cannon Assembled Focal Cannon Enhanced Nova Cannon Graviton Cannon > --- INVENTORY -------- Hybrid Antimatter Reactor Hybrid Antimatter Reactor Matter Drive High-density Centrium Heavy Treads High-density Centrium Heavy Treads Coolant Network Experimental Energy Well Zionite Biocell Zionite Biocell Experimental Powered Armor Hacking Drone Bay GOLEM Unit Dimensional Node Initializer Transdimensional Reconstructor Transdimensional Reconstructor High-powered Transdimensional Reconstructor High-powered Transdimensional Reconstructor Terrabomb Vortex Shotgun Vortex Shotgun Helical Railgun Helical Railgun Fusion Bomb Launcher Sigix Terminator [Rating: 249] Favorites ----------- Power Assembled Flux Generator Engine Angular Momentum Engine Power Core Neutrino Core Reactor Assembled Flux Generator Propulsion Assembled Alloy Leg Treads Light Treads Leg Assembled Alloy Leg Wheel Armored Huge Wheel Utility Cargo Storage Unit Device GOLEM Unit Storage Cargo Storage Unit Processor Improved Signal Interpreter Hackware Hacking Suite Protection Assembled Alloy Armor Artifact Spacefold Activator Weapon Assembled Focal Cannon Energy Gun Tachyon Dispersion Ray Energy Cannon Assembled Focal Cannon Ballistic Gun Light Assault Rifle Ballistic Cannon Magnetic Acceleration Cannon Launcher Fusion Bomb Launcher Special Weapon Mining Laser Impact Weapon Great Maul Slashing Weapon Chainsword Build | -11 -10 -10 -10 -9 -8 -7 -7 -7 -7 -6 -6 -6 -6 -6 -6 -5 -5 -5 -5 -5 -4 -4 -4 -4 -3 -3 -3 ------- Run | Yrd Mat Min Exi Min Mat Fac Low Low Dat Pro Fac Low Low Zio Dee Pro Fac Upp Upp War Pro Fac Arm Lab Res Qua Sec Slots Evolved 14 | . . . . . 4 2 . . . . 2 . . . . . 2 . . . . 2 . . 2 . . Power 2 | . . . . . . . . . . . 1 . . . . . 1 . . . . . . . . . . Propulsion 1 | . . . . . . . . . . . . . . . . . . . . . . 1 . . . . . Utility 11 | . . . . . 4 2 . . . . 1 . . . . . 1 . . . . 1 . . 2 . . Weapon . | . . . . . . . . . . . . . . . . . . . . . . . . . . . . Parts Attached 354 | 7 7 6 1 4 48 23 14 7 7 8 28 30 13 7 47 . 3 3 6 4 6 4 6 8 14 30 13 Power 39 | 1 1 . . 1 4 1 1 . . . 3 1 . . 4 . 1 1 1 1 1 1 1 . 4 8 3 Engine 15 | 1 1 . . 1 4 1 . . . . 3 1 . . 2 . 1 . . . . . . . . . . Core 3 | . . . . . . . 1 . . . . . . . . . . 1 1 . . . . . . . . Reactor 21 | . . . . . . . . . . . . . . . 2 . . . . 1 1 1 1 . 4 8 3 Propulsion 35 | 2 3 . 1 . 12 3 . . . . 1 . . . 2 . . . . . . 1 1 . 1 6 2 Treads 23 | 2 3 . 1 . 11 1 . . . . . . . . . . . . . . . . . . . 3 2 Leg 6 | . . . . . . . . . . . . . . . . . . . . . . 1 1 . 1 3 . Wheel 6 | . . . . . 1 2 . . . . 1 . . . 2 . . . . . . . . . . . . Hover . | . . . . . . . . . . . . . . . . . . . . . . . . . . . . Flight . | . . . . . . . . . . . . . . . . . . . . . . . . . . . . Utility 149 | 2 1 . . 1 12 8 9 3 2 6 9 15 4 5 26 . 2 2 5 1 5 2 4 5 5 12 3 Device 84 | 1 . . . 1 5 3 9 3 1 6 5 7 3 4 11 . 1 2 4 . 5 2 1 2 1 6 1 Storage 9 | 1 1 . . . 1 . . . . . 1 . . . 1 . . . 1 1 . . . 2 . . . Processor 6 | . . . . . . 3 . . . . . . . . . . 1 . . . . . 2 . . . . Hackware 5 | . . . . . 1 1 . . . . 1 . . . . . . . . . . . . . 2 . . Protection 43 | . . . . . 5 1 . . 1 . 2 8 1 1 14 . . . . . . . 1 1 2 6 . Artifact 2 | . . . . . . . . . . . . . . . . . . . . . . . . . . . 2 Weapon 131 | 2 2 6 . 2 20 11 4 4 5 2 15 14 9 2 15 . . . . 2 . . . 3 4 4 5 Energy Gun 13 | 1 . . . . 1 . . . . . . . . . 2 . . . . 2 . . . 2 3 . 2 Energy Cannon 42 | . 1 . . . 10 6 2 2 2 1 8 1 2 . 6 . . . . . . . . . . 1 . Ballistic Gun 20 | 1 1 3 . 1 3 . . . . . . 7 2 . . . . . . . . . . . . . 2 Ballistic Cannon 6 | . . . . . . 1 . . . . . . 1 1 2 . . . . . . . . . . 1 . Launcher 20 | . . . . . 6 . . . 2 . 3 2 1 . 3 . . . . . . . . . 1 1 1 Special Weapon 5 | . . 3 . 1 . . . . . . . . . . . . . . . . . . . 1 . . . Impact Weapon 4 | . . . . . . . . . . . . . . 1 2 . . . . . . . . . . 1 . Slashing Weapon 21 | . . . . . . 4 2 2 1 1 4 4 3 . . . . . . . . . . . . . . Piercing Weapon . | . . . . . . . . . . . . . . . . . . . . . . . . . . . . Special Melee Weapon . | . . . . . . . . . . . . . . . . . . . . . . . . . . . . Unidentified Prototypes 31 | . . . . . 2 1 . . . . . . . . 4 . . . . 2 . . 2 8 4 7 1 Corrupted Parts 3 | . . . . . . . . . . . . . . . . . . . . . . . 2 1 . . . System Corruption 21 | . . . . . . . . . . . . . . . . . . . . . . . 16 5 . . . Parts Lost 50 | . 4 . . . 6 . . . . . 8 2 . . 10 . . . 1 . 1 2 4 2 . 1 9 Power 10 | . 1 . . . . . . . . . 3 . . . 2 . . . . . . . 1 . . 1 2 Propulsion 8 | . 2 . . . 2 . . . . . 1 . . . . . . . . . . . 1 . . . 2 Utility 20 | . . . . . 2 . . . . . 2 1 . . 7 . . . 1 . 1 2 1 2 . . 1 Weapon 12 | . 1 . . . 2 . . . . . 2 1 . . 1 . . . . . . . 1 . . . 4 Highest Loss Streak 6 | . 3 . . . 2 . . . . . 3 2 . . 4 . . . 1 . 1 2 3 1 . 1 6 To Critical Strikes 2 | . . . . . . . . . . . . . . . . . . . . . . . . . . . 2 Average Slot Usage (%) 85 | . 99 100 100 100 94 91 92 92 92 92 82 83 80 79 78 80 77 82 81 82 81 81 79 74 82 84 69 Engine 5 | . 13 14 14 14 9 6 . . . . 6 11 13 13 4 . 1 . . . . . . . . . . Core 1 | . . . . . . . 6 7 7 7 3 . . . . . . 4 5 5 5 2 . . . . . Reactor 3 | . . . . . . . . . . . . . . . 5 6 5 5 4 5 5 7 9 10 9 11 7 Treads 5 | . 27 28 28 28 17 8 . . . . . . . . . . . . . . . . . . . 3 7 Leg 4 | . . . . . . . . . . . . . . . 2 13 11 11 11 11 11 12 14 14 13 9 . Wheel 2 | . . . . . . 4 7 7 7 7 5 6 6 6 4 . . . . . . . . . . . . Device 19 | . 14 14 14 14 24 21 23 23 19 23 17 16 19 20 20 26 24 23 17 19 16 22 16 13 18 16 15 Storage 10 | . 14 14 14 14 9 7 7 7 7 7 6 6 6 6 8 13 11 11 16 14 17 13 10 9 8 8 7 Processor 6 | . . . . . . 11 23 23 23 23 20 14 13 11 4 . 3 5 5 5 5 5 8 10 8 4 3 Hackware 1 | . . . . . 9 4 . . . . 4 . . . . . . . . . . . . . 3 . . Protection 6 | . . . . . 6 7 7 7 11 7 3 12 6 7 12 6 5 5 5 5 5 5 7 6 5 11 8 Energy Cannon 9 | . 2 14 14 14 14 9 14 14 9 14 9 2 2 . 6 13 11 11 10 10 10 10 9 8 11 12 11 Ballistic Gun 2 | . 13 13 14 13 2 . . . . . . 9 6 . . . . . . . . . . . . . . Ballistic Cannon 1 | . . . . . . 3 . . . . . . 2 7 5 . . . . . . . . . . . 2 Naked Turns . | . . . . . . . . . . . . . . . . . . . . . . . . . . . . Heaviest Build 314 | 15 90 90 90 90 119 116 112 112 118 112 179 207 203 210 228 228 233 233 237 237 232 233 255 260 280 314 314 Greatest Support 180 | 40 40 40 40 40 56 56 28 28 28 28 28 28 28 28 80 60 60 60 60 60 60 85 85 85 133 170 180 Greatest Overweight (x) 7 | 1 2 2 2 2 2 7 3 3 4 3 6 7 7 7 7 3 3 3 3 3 3 3 4 4 2 4 1 Average Overweight (x) 3 | . 1 2 2 2 2 5 3 3 3 3 4 6 6 6 5 3 3 3 3 3 3 2 2 2 1 2 . Largest Inventory Capacity 30 | 8 25 25 25 25 25 25 25 25 25 25 30 30 30 30 30 30 30 30 30 30 30 30 30 30 30 30 30 Average Capacity 27 | 7 21 25 25 25 25 25 25 25 25 25 29 30 30 30 29 30 30 30 30 30 30 30 30 27 30 30 28 Most Carried 30 | 8 16 19 25 25 25 25 25 25 25 25 28 30 30 30 30 30 30 30 30 30 30 30 30 30 27 30 30 Average Carried 26 | 3 10 18 21 24 24 24 24 24 25 24 25 28 29 29 27 30 29 29 29 29 29 29 29 18 21 27 26 Final Capacity 30 | 8 25 25 25 25 25 25 25 25 25 25 30 30 30 30 30 30 30 30 30 30 30 30 30 30 30 30 5 Final Carried 30 | 7 16 19 25 25 25 25 25 25 25 25 23 30 30 30 30 30 30 30 30 30 30 30 30 21 27 30 . Class Distribution -------------------- 40% | Hauler-Golem 18% | Mutant 12% | Scavenger-Skirmisher 10% | Hauler-Mutant 8% | Hauler-Skirmisher Dominant Class ---------------- Mutant | -10/Materials Mutant | -10/Mines Mutant | -10/Exiles Mutant | -9/Mines Mutant | -8/Materials Skirmisher | -7/Factory Scavenger-Skirmisher | -7/Lower Caves Scavenger-Skirmisher | -7/Lower Caves Mutant | -7/Data Miner Scavenger-Skirmisher | -6/Proximity Caves Hauler-Assassin | -6/Factory Hauler-Skirmisher | -6/Lower Caves Hauler-Skirmisher | -6/Lower Caves Hauler-Mutant | -6/Zion Hauler-Mutant | -6/Deep Caves Hauler-Golem | -5/Proximity Caves Hauler-Golem | -5/Factory Hauler-Golem | -5/Upper Caves Hauler-Golem | -5/Upper Caves Hauler-Golem | -5/Warlord Hauler-Golem | -4/Proximity Caves Hauler-Golem | -4/Factory Hauler-Golem | -4/Armory Hauler-Golem | -4/Lab Hauler-Golem | -3/Research Hauler-Golem | -3/Quarantine Hauler-Gunner | -3/Section 7 Resources | -11 -10 -10 -10 -9 -8 -7 -7 -7 -7 -6 -6 -6 -6 -6 -6 -5 -5 -5 -5 -5 -4 -4 -4 -4 -3 -3 -3 ----------- Run | Yrd Mat Min Exi Min Mat Fac Low Low Dat Pro Fac Low Low Zio Dee Pro Fac Upp Upp War Pro Fac Arm Lab Res Qua Sec Matter Collected 6744 | 291 553 84 . 51 581 594 324 70 56 250 214 716 211 76 1319 . 30 30 50 50 50 50 81 85 88 680 160 Remotely . | . . . . . . . . . . . . . . . . . . . . . . . . . . . . Salvage Created 18445 | 122 986 194 . 49 1910 750 243 28 69 136 910 495 158 . 2029 87 564 300 263 361 557 1249 2509 85 173 3620 598 Parts 812 | 4 68 17 . 4 113 45 9 2 . 10 35 8 8 . 47 8 24 15 19 13 32 65 120 5 10 112 19 Haulers Intercepted 9 | . 2 . . . 4 2 . . . . 1 . . . . . . . . . . . . . . . . Recyclers Shooed 4 | . . . . . . 2 . . . . 1 . . . . . . . . . . 1 . . . . . Parts Field Recycled . | . . . . . . . . . . . . . . . . . . . . . . . . . . . . Retrieved Matter . | . . . . . . . . . . . . . . . . . . . . . . . . . . . . Parts Self-Destructed 102 | . . . . . . . 9 5 . 10 . 3 6 . . 8 . 11 18 . 32 . . . . . . Prevented . | . . . . . . . . . . . . . . . . . . . . . . . . . . . . Kills | -11 -10 -10 -10 -9 -8 -7 -7 -7 -7 -6 -6 -6 -6 -6 -6 -5 -5 -5 -5 -5 -4 -4 -4 -4 -3 -3 -3 ------- Run | Yrd Mat Min Exi Min Mat Fac Low Low Dat Pro Fac Low Low Zio Dee Pro Fac Upp Upp War Pro Fac Arm Lab Res Qua Sec Combat Hostiles Destroyed 336 | . 14 11 . 1 40 6 5 1 3 2 14 6 4 . 60 1 5 5 9 5 12 16 39 1 1 55 20 Melee 1 | . . . . . . . . . . . . 1 . . . . . . . . . . . . . . . Guns 27 | . 12 4 . . 6 . . . . . . . 1 . 2 . . . . . . . . . . 1 1 Cannons 179 | . 1 7 . 1 20 4 5 1 . 2 6 1 . . 19 1 5 5 9 4 12 15 39 1 1 14 6 AOE 118 | . . . . . 14 . . . 3 . 7 4 3 . 36 . . . . . . . . . . 38 13 Classes Destroyed 32 | 2 7 1 . . 4 1 2 . . . . 1 . . 4 1 . . . 2 1 . 1 . . 5 . Worker 10 | . 3 . . . . 2 . . . . 2 . . . . . . . . . . 2 . . 1 . . Builder 17 | . 4 . . . 4 3 . . . . 1 . . . . . . . . . . 4 . . 1 . . Tunneler 3 | 1 . . . . 2 . . . . . . . . . . . . . . . . . . . . . . Hauler 9 | . 2 . . . 4 2 . . . . 1 . . . . . . . . . . . . . . . . Recycler 7 | 1 1 . . . 1 2 . . . . . . . . . . 1 . . . . 1 . . . . . Carrier 3 | . . . . . . . . . . . . . . . . . . . . . . . . . . 1 2 Minesweeper 4 | . . . . . . . 2 . . 1 . . . . . 1 . . . . . . . . . . . Mechanic 17 | . 1 . . . . . . . . . . . . . . . . . . . . . . . . 13 3 Operator 6 | . 3 . . . 2 1 . . . . . . . . . . . . . . . . . . . . . Drone 2 | . . . . . . . . . . . . . . . . . . . . . 2 . . . . . . Watcher 20 | . 3 . . . 4 3 . . . . 1 . . . . . 3 . . . . . 4 . 1 . 1 Swarmer 55 | . . 10 . . 8 . 3 1 . . . . 3 . . . . 4 8 . 4 5 9 . . . . Saboteur 5 | . . . . . . . . . . . . . . . . . . . . . . . . . . 5 . Grunt 100 | . 14 1 . 1 22 2 1 . . 1 12 3 1 . . . 3 . . 2 3 6 6 . . 16 6 Brawler 11 | . . . . . 1 . . . . . . 1 . . . . . . . 1 . . 2 . . 5 1 Duelist 13 | . . . . . 1 . . . . . . . . . . . . . . . 1 . 3 . . 6 2 Protector 8 | . . . . . 1 . . . . . . . . . . . . . . . . . 1 . . 5 1 Sentry 20 | . . . . . 7 . . . . . 2 . . . . . 2 1 1 . . 3 2 . 1 . 1 Specialist 8 | . . . . . . . . . . . . . . . . . . . . 1 . . 7 . . . . Hunter 14 | . . . . . . . . . . . . . . . . 1 . . . . 2 2 2 . . 4 3 Programmer 22 | . . . . . . 4 . . . 1 . 1 . . . . . . . . . . 6 . . 9 1 Heavy 1 | . . . . . . . . . . . . . . . . . . . . . . . 1 . . . . Enhanced Grunt 3 | . . . . . . . . . 3 . . . . . . . . . . . . . . . . . . Striker 1 | . . . . . . . . . . . . . . . . . . . . 1 . . . . . . . Executioner 8 | . . . . . . . . . . . . . . . . . . . . . . . . . . 3 5 Alpha 7 1 | . . . . . . . . . . . . . . . . . . . . . . . . . . 1 . Fortress 1 | . . . . . . . . . . . . . . . . . . . . . . . . . . 1 . Z-Light 11 | . . . . . . . . . . . . . . . 11 . . . . . . . . . . . . Decomposer 1 | . . . . . . . . . . . . . . . . . . 1 . . . . . . . . . Packrat 3 | . . . . . . . . . . . . 2 1 . . . . . . . . . . . . . . Samaritan 3 | . . . . . . . . . . . . 1 . . . . . 2 . . . . . . . . . Assembler 2 | . . . . . . . . . . . . . . . 2 . . . . . . . . . . . . Assembled 37 | . . . . . . . . . . . . . . . 37 . . . . . . . . . . . . Golem 11 | . . . . . . . . . . . . . . . 11 . . . . . . . . . . . . Thug 1 | . . . . . . . . . . . 1 . . . . . . . . . . . . . . . . Mutant 2 | . . . . . . . 1 . . . . 1 . . . . . . . . . . . . . . . Best Kill Streak 36 | 1 7 3 . 1 10 7 3 1 3 2 8 4 3 . 36 1 4 2 4 3 4 8 15 1 1 34 19 Combat Bots Only 34 | . 3 3 . 1 8 3 3 1 3 1 6 4 3 . 34 1 3 2 4 3 4 7 12 1 1 31 14 Max Kills in Single Turn 16 | 1 2 2 . 1 4 2 1 1 2 1 3 2 3 . 11 1 1 1 1 1 1 2 2 1 1 6 16 Gunslinging . | . . . . . . . . . . . . . . . . . . . . . . . . . . . . Exploded 12 | . . . . . 3 . . . 2 . 3 2 3 . 11 . . . . . . . . . . 4 12 Melee 1 | . . . . . . . . . . . . 1 . . . . . . . . . . . . . . . Uniques/NPCs Destroyed 2 | . . . . . . . . . . . . . . . 1 . . . . . . . . 1 . . . Z-Imprinter (-6/Deep Caves) A5 (-4/Lab) Combat | -11 -10 -10 -10 -9 -8 -7 -7 -7 -7 -6 -6 -6 -6 -6 -6 -5 -5 -5 -5 -5 -4 -4 -4 -4 -3 -3 -3 -------- Run | Yrd Mat Min Exi Min Mat Fac Low Low Dat Pro Fac Low Low Zio Dee Pro Fac Upp Upp War Pro Fac Arm Lab Res Qua Sec Hostile Shots Fired 1753 | . 86 51 . . 202 24 20 4 . 3 122 35 11 . 152 6 15 4 24 . 60 108 132 53 . 152 489 Missed 578 | . 23 16 . . 43 12 2 1 . 1 39 9 5 . 38 2 5 2 12 . 25 37 50 18 . 57 181 Damage Taken 20138 | . 833 284 . . 2541 185 276 48 . 32 1488 384 101 . 3141 63 180 37 146 17 269 1110 1520 812 . 2297 4374 Core 2769 | . 150 32 . . 412 15 18 . . . 228 62 37 . 471 11 21 . 13 . 16 101 69 . . 307 806 Absorbed by Shields 2726 | . . . . . . . . . . . . . . . . . . . . 17 241 147 . . . . 2321 Reduced by Siege Mode 14 | . . . . . . . . . . . . . . . . . . . . . . . . . . 14 . Redirected to Shielding 419 | . . . . . . . . . . . . . . . 419 . . . . . . . . . . . . Ignored by Resistances 3274 | . . . . . . . . . . . . . . . 20 13 37 7 33 6 108 267 312 107 . 567 1797 Regen/Repaired (Parts) 1947 | . . . . . 220 . . . . . . . . . . . . . . . . . 482 377 . 524 344 Core Remaining (%) 61 | 100 . . . 27 25 . . . . 95 . . . . . 4 . . . . 95 . . 85 . . . Volleys Fired 1037 | 7 112 37 . 5 162 51 18 2 4 3 40 10 8 . 141 7 18 25 23 16 24 58 102 38 11 76 39 Largest 5 | 2 2 2 . 2 2 2 2 2 2 2 2 2 2 . 2 2 2 2 2 2 2 2 2 2 4 5 5 Hottest 265 | 70 110 100 . 100 150 160 160 160 78 160 165 160 58 . 163 50 50 50 50 50 50 50 50 50 155 207 265 Shots Fired 1954 | 14 220 61 . 6 310 84 32 4 8 6 73 17 11 . 216 14 35 50 46 24 47 105 168 69 30 198 106 Gun 405 | 14 207 24 . 1 74 . . . . . . . 10 . 33 . . . . . . . . . 3 18 21 Cannon 1444 | . 13 24 . 1 223 84 32 4 . 6 64 10 . . 162 14 35 50 46 24 47 105 168 69 27 152 84 Launcher 88 | . . . . . 13 . . . 8 . 9 7 1 . 21 . . . . . . . . . . 28 1 Special 17 | . . 13 . 4 . . . . . . . . . . . . . . . . . . . . . . . Kinetic 330 | 7 107 24 . 1 72 30 . . . . . . 10 . 64 . . . . . . . . . . . 15 Thermal 1438 | 7 113 37 . 5 225 54 32 4 . 6 64 10 . . 71 14 35 50 46 24 47 105 168 69 27 152 73 Explosive 87 | . . . . . 13 . . . 8 . 9 7 1 . 21 . . . . . . . . . . 28 . Electromagnetic 48 | . . . . . . . . . . . . . . . 27 . . . . . . . . . 3 18 . Slashing 16 | . . . . . . . . . . . . . . . . . . . . . . . . . . . 16 Entropic 2 | . . . . . . . . . . . . . . . . . . . . . . . . . . . 2 Phasic 33 | . . . . . . . . . . . . . . . 33 . . . . . . . . . . . . Robot Hit Streak 33 | 2 9 6 . 2 19 7 6 1 . 6 17 4 6 . 33 3 8 9 9 10 7 24 19 8 3 22 9 Robot Miss Streak 7 | 3 4 7 . . 4 3 1 3 . . 3 2 2 . 4 1 1 2 2 2 3 1 2 6 2 2 3 Penetration Max 1 | . . . . . . . . . . . . . . . . . . . . . . . . . . . 1 Secondary Targets 22 | . 1 . . . . . . . . . . . . . . . . . . . . . 3 . . 14 4 Max Gunslinging Chain 2 | . 1 . . . . . . . . . . . . . . . . . . . . . 1 . . 2 2 Shots Hit Robots 1125 | 6 138 20 . 1 170 45 16 1 1 5 48 22 11 . 133 4 25 13 14 10 26 72 115 39 12 122 56 Core Hits 884 | 3 55 14 . 1 98 18 10 1 23 5 57 17 7 . 177 . 12 6 10 6 15 28 64 8 4 209 36 Critical Kills 5 | . . . . . 1 2 . . . . 1 . . . 1 . . . . . . . . . . . . Critical Parts Destroyed 2 | . 1 . . . . . . . . . . . . . . . . . . . . . . . . . 1 Critical Strikes 26 | . 8 . . . 1 4 . . . . 1 2 . . 7 . . . . . . . . . . . 3 Burn 7 | . 7 . . . . . . . . . . . . . . . . . . . . . . . . . . Meltdown 5 | . . . . . 1 2 . . . . 1 . . . 1 . . . . . . . . . . . . Destroy 1 | . 1 . . . . . . . . . . . . . . . . . . . . . . . . . . Blast 6 | . . . . . . 2 . . . . . . . . 3 . . . . . . . . . . . 1 Sever 3 | . . . . . . . . . . . . 2 . . . . . . . . . . . . . . 1 Detonate 1 | . . . . . . . . . . . . . . . . . . . . . . . . . . . 1 Intensify 3 | . . . . . . . . . . . . . . . 3 . . . . . . . . . . . . Melee Attacks 81 | . . . . . . 9 3 2 1 1 15 16 4 21 4 . . . . . . . . . . 5 . Kinetic 5 | . . . . . . . . . . . . . . . . . . . . . . . . . . 5 . Impact 25 | . . . . . . . . . . . . . . 21 4 . . . . . . . . . . . . Slashing 51 | . . . . . . 9 3 2 1 1 15 16 4 . . . . . . . . . . . . . . Piercing . | . . . . . . . . . . . . . . . . . . . . . . . . . . . . Sneak Attacks 6 | . . . . . . 1 . . 1 . . 2 2 . . . . . . . . . . . . . . Combat Hostiles . | . . . . . . . . . . . . . . . . . . . . . . . . . . . . Follow-up Attacks . | . . . . . . . . . . . . . . . . . . . . . . . . . . . . Damage Inflicted 74282 | 75 1795 297 . 17 5522 1348 458 50 1102 145 2904 1626 554 . 7273 231 1150 653 725 609 1278 3495 5648 1306 387 17086 18548 Guns 4637 | 75 1673 69 . . 686 . . . . . . . 190 . 630 . . . . . . . . . . 167 1147 Cannons 32095 | . 122 228 . 17 2866 1282 458 50 . 145 1383 183 . . 3454 231 1150 653 725 609 1278 3495 5648 1306 387 4593 1832 Explosions 36373 | . . . . . 1970 . . . 1028 . 1521 776 160 . 3189 . . . . . . . . . . 12160 15569 Melee 1177 | . . . . . . 66 . . 74 . . 667 204 . . . . . . . . . . . . 166 . Ramming . | . . . . . . . . . . . . . . . . . . . . . . . . . . . . Kinetic 3796 | 38 853 69 . . 650 241 . . . . . . 190 . 1163 . . . . . . . . . . 166 426 Thermal 47276 | 37 942 228 . 17 2902 1041 458 50 . 145 1383 183 . . 1749 231 1150 653 725 609 1278 3495 5648 1306 387 5593 17066 Explosive 19552 | . . . . . 1970 . . . 1028 . 1269 776 160 . 3189 . . . . . . . . . . 11160 . Electromagnetic 961 | . . . . . . . . . . . 252 . . . 542 . . . . . . . . . . 167 . Impact . | . . . . . . . . . . . . . . . . . . . . . . . . . . . . Slashing 1981 | . . . . . . 66 . . 74 . . 667 204 . . . . . . . . . . . . . 970 Piercing . | . . . . . . . . . . . . . . . . . . . . . . . . . . . . Entropic 86 | . . . . . . . . . . . . . . . . . . . . . . . . . . . 86 Phasic 630 | . . . . . . . . . . . . . . . 630 . . . . . . . . . . . . Highest Corruption 29 | . . . . . . 4 1 . . . 4 3 . . . . . . . . . . 20 29 . 1 18 Average Corruption 6 | . . . . . . 1 1 . . . 3 2 . . . . . . . . . . 17 23 . 1 6 Corruption Purged 12 | . . . . . . 4 1 . . . 2 5 . . . . . . . . . . . . . . . Corruption Blocked 40 | . . . . . . . . . . . . . . . . . . . . . . . 40 . . . . Effects 87 | . . . . . . 4 . . . . 2 2 . . . . . . . . . . 32 13 . 17 17 Message Errors 21 | . . . . . . 2 . . . . . . . . . . . . . . . . 9 2 . 4 4 Matter Fused 14 | . . . . . . . . . . . . . . . . . . . . . . . 6 4 . 1 3 Heat Flow Errors 6 | . . . . . . . . . . . 1 . . . . . . . . . . . 1 1 . 2 1 Energy Discharges 10 | . . . . . . . . . . . . 1 . . . . . . . . . . 5 . . 3 1 Parts Rejected 1 | . . . . . . . . . . . . . . . . . . . . . . . . . . . 1 Parts Fused 4 | . . . . . . 1 . . . . . . . . . . . . . . . . 1 . . 1 1 Data Loss (minor) 13 | . . . . . . 1 . . . . . . . . . . . . . . . . 5 1 . 3 3 Data Loss (major) 7 | . . . . . . . . . . . 1 . . . . . . . . . . . 3 1 . 1 1 Misfires 1 | . . . . . . . . . . . . . . . . . . . . . . . . . . 1 . Alerts 2 | . . . . . . . . . . . . 1 . . . . . . . . . . . . . . 1 Weapon Failures 8 | . . . . . . . . . . . . . . . . . . . . . . . 2 4 . 1 1 Overload Shots . | . . . . . . . . . . . . . . . . . . . . . . . . . . . . Overflow Damage 2924 | . . . . . 123 106 3 . . . 12 176 127 . 271 94 62 177 29 . 21 93 78 16 80 431 1025 Projectiles 1194 | . . . . . 39 80 3 . . . 12 13 . . 191 94 62 177 29 . 21 93 78 16 80 203 3 Explosions 1432 | . . . . . 84 . . . . . . . 18 . 80 . . . . . . . . . . 228 1022 Melee 298 | . . . . . . 26 . . . . . 163 109 . . . . . . . . . . . . . . Knockbacks 12 | . . . . . . 5 . . . . . . . . 5 . . . . . . . . . . . 2 Impact . | . . . . . . . . . . . . . . . . . . . . . . . . . . . . Kinetic 11 | . . . . . . 4 . . . . . . . . 5 . . . . . . . . . . . 2 Secondary 1 | . . . . . . 1 . . . . . . . . . . . . . . . . . . . . . Self-Inflicted Damage 556 | . . . . . 68 . . . . . 41 . . . 211 . . . . . . . . . . 236 . Shots 16 | . . . . . 3 . . . . . 2 . . . 5 . . . . . . . . . . 6 . Rammed . | . . . . . . . . . . . . . . . . . . . . . . . . . . . . Targets Rammed . | . . . . . . . . . . . . . . . . . . . . . . . . . . . . Kicked . | . . . . . . . . . . . . . . . . . . . . . . . . . . . . Crushed . | . . . . . . . . . . . . . . . . . . . . . . . . . . . . Highest Temperature 418 | 36 311 220 . 80 199 195 197 54 . 27 199 180 103 . 230 . 10 . . . . . 215 158 90 418 403 Average Temperature 78 | 17 51 57 . 37 71 76 69 28 . 18 112 83 58 . 68 . 10 . . . . . 70 93 33 168 213 Received Heat Transfer 3955 | . 438 6 . . 1395 27 80 . . . 525 54 18 . 656 . 72 9 9 . 22 190 151 . . 222 81 Effects 6 | . 3 . . . . . . . . . . . . . . . . . . . . . . . . 3 . Interference 3 | . 3 . . . . . . . . . . . . . . . . . . . . . . . . . . Matter Decay 1 | . . . . . . . . . . . . . . . . . . . . . . . . . . 1 . Short Circuit 1 | . . . . . . . . . . . . . . . . . . . . . . . . . . 1 . Damage (minor) 1 | . . . . . . . . . . . . . . . . . . . . . . . . . . 1 . Siege Activations 1 | . . . . . . . . . . . . . . . . . . . . . . . . . . 1 . Total Turns 18 | . . . . . . . . . . . . . . . . . . . . . . . . . . 18 . Longest Duration 18 | . . . . . . . . . . . . . . . . . . . . . . . . . . 18 . Robots Corrupted 2 | . . . . . . . . . . . . . . . 2 . . . . . . . . . . . . Combat Hostiles 2 | . . . . . . . . . . . . . . . 2 . . . . . . . . . . . . Parts Fried . | . . . . . . . . . . . . . . . . . . . . . . . . . . . . Impact Corruptions . | . . . . . . . . . . . . . . . . . . . . . . . . . . . . Robots Melted 9 | . 1 . . . 1 2 . . . . 1 . . . 1 . . . . 1 . 1 . . . 1 . Combat Hostiles 8 | . 1 . . . . 2 . . . . 1 . . . 1 . . . . 1 . 1 . . . 1 . Parts Melted 46 | . 4 . . . 11 7 3 . . 2 4 . . . 1 . 1 2 . 1 . 4 2 . 1 3 . Heat Transferred 28587 | 111 3219 481 . 37 4635 1560 900 100 . 250 2053 300 . . 2900 100 625 325 375 287 650 1700 2682 884 200 3121 1092 Parts Sabotaged 1 | . . . . . . . . . . . . . . . . . . . . . . . . . . 1 . Parts Stolen . | . . . . . . . . . . . . . . . . . . . . . . . . . . . . Parts Stripped 18 | . . . . . . . . . . . . . . . . . . . . . . . . . . 18 . Power Chain Reactions 3 | . . . . . . . . . . . . . . . . . . . . . . . . . . 3 . Alert | -11 -10 -10 -10 -9 -8 -7 -7 -7 -7 -6 -6 -6 -6 -6 -6 -5 -5 -5 -5 -5 -4 -4 -4 -4 -3 -3 -3 ------- Run | Yrd Mat Min Exi Min Mat Fac Low Low Dat Pro Fac Low Low Zio Dee Pro Fac Upp Upp War Pro Fac Arm Lab Res Qua Sec Peak Influence 8896 | 10 231 148 . 87 778 470 . . . . 478 . . . . . 202 . . . . 611 1089 . 418 8896 6502 Initial 5004 | . 6 10 . . . 353 . . . . . . . . . . . . . . . 454 294 . . 150 5004 Average 1205 | 4 51 57 . 4 376 304 . . . . 197 . . . . . 117 . . . . 502 751 . 183 7078 5186 Maximum Alert Level 5 | . 1 . . . 3 2 . . . . 2 . . . . . 1 . . . . 2 3 . 2 5 5 Low Security (%) 43 | 100 96 100 . 100 26 14 . . . . 54 . . . . . 85 . . . . . . . 55 . . Level 1 15 | . 3 . . . 15 78 . . . . 20 . . . . . 14 . . . . . 19 . 33 . . Level 2 21 | . . . . . 54 7 . . . . 25 . . . . . . . . . . 99 24 . 10 . . Level 3 4 | . . . . . 3 . . . . . . . . . . . . . . . . . 55 . . . . Level 4 . | . . . . . . . . . . . . . . . . . . . . . . . . . . . . Level 5 . | . . . . . . . . . . . . . . . . . . . . . . . . . . . . High Security . | . . . . . . . . . . . . . . . . . . . . . . . . . . . . Max Security 14 | . . . . . . . . . . . . . . . . . . . . . . . . . . 99 99 Sterilizations 1 | . . . . . . . . . . . . . . . . . . . . . . . . . . 1 . Squads Dispatched 110 | . 4 . . 1 8 7 . . . . 7 . . . . . 1 . . . . 2 5 . 2 42 31 Investigation 8 | . 1 . . 1 3 2 . . . . 1 . . . . . . . . . . . . . . . . Extermination 7 | . . . . . . 3 . . . . . . . . . . . . . . . 1 2 . 1 . . Reinforcement 14 | . 3 . . . 3 2 . . . . 1 . . . . . 1 . . . . 1 2 . . . 1 Assault 76 | . . . . . 2 . . . . . 1 . . . . . . . . . . . 1 . . 42 30 Garrison 4 | . . . . . . . . . . . 4 . . . . . . . . . . . . . . . . Intercept 1 | . . . . . . . . . . . . . . . . . . . . . . . . . 1 . . Searches Triggered 1 | . . . . . . . . . . . . . . . . . . . . . . 1 . . . . . Construction Impeded 1 | . . . . . 1 . . . . . . . . . . . . . . . . . . . . . . Haulers Reinforced 2 | . . . . . . 1 . . . . 1 . . . . . . . . . . . . . . . . Active Scanning Responses . | . . . . . . . . . . . . . . . . . . . . . . . . . . . . Cargo Convoy Interrupts . | . . . . . . . . . . . . . . . . . . . . . . . . . . . . Stealth | -11 -10 -10 -10 -9 -8 -7 -7 -7 -7 -6 -6 -6 -6 -6 -6 -5 -5 -5 -5 -5 -4 -4 -4 -4 -3 -3 -3 --------- Run | Yrd Mat Min Exi Min Mat Fac Low Low Dat Pro Fac Low Low Zio Dee Pro Fac Upp Upp War Pro Fac Arm Lab Res Qua Sec Distress Signals 23 | . 4 . . . 4 . . . . . 1 . . . . . 4 . . . . 1 7 . . . 2 Communications Jammed . | . . . . . . . . . . . . . . . . . . . . . . . . . . . . Distress Signals . | . . . . . . . . . . . . . . . . . . . . . . . . . . . . Times Spotted 591 | . 27 12 . . 55 10 5 3 3 2 18 6 3 . 57 1 10 1 8 10 14 16 46 1 6 170 107 Peak Tracking Total 37 | . 6 3 . . 9 3 3 3 4 1 6 4 3 . 37 1 5 1 4 7 5 6 13 1 2 25 30 Tactical Retreats 16 | . 2 . . . 3 . . . . . 1 . . . 5 . . . . . . 1 2 . . 2 . Traps | -11 -10 -10 -10 -9 -8 -7 -7 -7 -7 -6 -6 -6 -6 -6 -6 -5 -5 -5 -5 -5 -4 -4 -4 -4 -3 -3 -3 ------- Run | Yrd Mat Min Exi Min Mat Fac Low Low Dat Pro Fac Low Low Zio Dee Pro Fac Upp Upp War Pro Fac Arm Lab Res Qua Sec Traps Triggered 7 | . 1 . . . . 4 . . . . . . . . . . . . . . . . 2 . . . . Indirectly . | . . . . . . . . . . . . . . . . . . . . . . . . . . . . Trap Hack Attempts . | . . . . . . . . . . . . . . . . . . . . . . . . . . . . Triggered . | . . . . . . . . . . . . . . . . . . . . . . . . . . . . Disarmed . | . . . . . . . . . . . . . . . . . . . . . . . . . . . . Reprogrammed . | . . . . . . . . . . . . . . . . . . . . . . . . . . . . Reused . | . . . . . . . . . . . . . . . . . . . . . . . . . . . . Traps Extracted . | . . . . . . . . . . . . . . . . . . . . . . . . . . . . Installed . | . . . . . . . . . . . . . . . . . . . . . . . . . . . . Triggered 10 | . . . . . . . 1 . . . . . . . . . . . 1 8 . . . . . . . Machines | -11 -10 -10 -10 -9 -8 -7 -7 -7 -7 -6 -6 -6 -6 -6 -6 -5 -5 -5 -5 -5 -4 -4 -4 -4 -3 -3 -3 ---------- Run | Yrd Mat Min Exi Min Mat Fac Low Low Dat Pro Fac Low Low Zio Dee Pro Fac Upp Upp War Pro Fac Arm Lab Res Qua Sec Machines Disabled 45 | . . 1 . . 2 . 2 . . . 5 1 . . 2 . 1 . . . . 4 2 2 . 12 11 Max in Single Turn 7 | . . 1 . . 1 . 1 . . . 4 1 . . 1 . 1 . . . . 1 1 1 . 1 7 Machines Repaired . | . . . . . . . . . . . . . . . . . . . . . . . . . . . . Machines Dismantled . | . . . . . . . . . . . . . . . . . . . . . . . . . . . . Machines Sabotaged . | . . . . . . . . . . . . . . . . . . . . . . . . . . . . Overloaded Fab Kills . | . . . . . . . . . . . . . . . . . . . . . . . . . . . . Hacking | -11 -10 -10 -10 -9 -8 -7 -7 -7 -7 -6 -6 -6 -6 -6 -6 -5 -5 -5 -5 -5 -4 -4 -4 -4 -3 -3 -3 --------- Run | Yrd Mat Min Exi Min Mat Fac Low Low Dat Pro Fac Low Low Zio Dee Pro Fac Upp Upp War Pro Fac Arm Lab Res Qua Sec Machines Accessed 46 | . 7 . 2 1 11 8 2 1 4 . 3 . 2 . . . . 1 . 2 . . 1 . 1 . . Terminals 19 | . 5 . . . 8 4 1 . . . . . . . . . . . . . . . 1 . . . . Fabricators 3 | . . . . . . 1 . . . . 2 . . . . . . . . . . . . . . . . Repair Stations 3 | . . . . . 1 2 . . . . . . . . . . . . . . . . . . . . . Recycling Units 6 | . 2 . . . 2 1 . . . . 1 . . . . . . . . . . . . . . . . Scanalyzers . | . . . . . . . . . . . . . . . . . . . . . . . . . . . . Garrison Access 1 | . . . . . . . . . . . . . . . . . . . . . . . . . 1 . . Total Hacks 130 | . 24 . 2 1 32 22 3 1 26 . 5 . 2 . . . . 1 . 6 . . 1 . 4 . . Successful 81 | . 8 . 2 1 18 9 3 1 26 . 4 . 2 . . . . 1 . 6 . . . . . . . Failed 48 | . 16 . . . 13 13 . . . . 1 . . . . . . . . . . . 1 . 4 . . Catastrophic 7 | . 3 . . . . 4 . . . . . . . . . . . . . . . . . . . . . Database Lockouts 1 | . . . . . 1 . . . . . . . . . . . . . . . . . . . . . . Manual 35 | . 12 . 1 . 13 5 . . . . 2 . . . . . . . . 1 . . 1 . . . . Terminals 57 | . 20 . . . 24 10 2 . . . . . . . . . . . . . . . 1 . . . . Fabricators 8 | . . . . . . 5 . . . . 3 . . . . . . . . . . . . . . . . Repair Stations 6 | . . . . . 2 4 . . . . . . . . . . . . . . . . . . . . . Recycling Units 15 | . 4 . . . 6 3 . . . . 2 . . . . . . . . . . . . . . . . Scanalyzers . | . . . . . . . . . . . . . . . . . . . . . . . . . . . . Garrison Access 4 | . . . . . . . . . . . . . . . . . . . . . . . . . 4 . . Terminal Hacks 61 | . 5 . 2 1 10 4 3 1 26 . . . 2 . . . . 1 . 6 . . . . . . . Record 14 | . . . 1 . . . 2 . 11 . . . . . . . . . . . . . . . . . . Part Schematic 9 | . 1 . . . . . . . 8 . . . . . . . . . . . . . . . . . . Robot Schematic 4 | . . . . . . . . . 4 . . . . . . . . . . . . . . . . . . Robot Analysis 5 | . 1 . . . 4 . . . . . . . . . . . . . . . . . . . . . . Prototype ID Bank 12 | . 1 . . . 2 1 . . 3 . . . . . . . . . . 5 . . . . . . . Open Door 7 | . . . . 1 . . 1 1 . . . . 2 . . . . 1 . 1 . . . . . . . Branch Access Points 2 | . . . . . 1 1 . . . . . . . . . . . . . . . . . . . . . Terminal Index 1 | . . . . . . 1 . . . . . . . . . . . . . . . . . . . . . Locate Traps 6 | . 2 . . . 3 1 . . . . . . . . . . . . . . . . . . . . . Derelict Proto ID Bank 1 | . . . 1 . . . . . . . . . . . . . . . . . . . . . . . . Fabricator Hacks 5 | . . . . . . 2 . . . . 3 . . . . . . . . . . . . . . . . Load Schematic 2 | . . . . . . 1 . . . . 1 . . . . . . . . . . . . . . . . Build 3 | . . . . . . 1 . . . . 2 . . . . . . . . . . . . . . . . Repair Station Hacks 4 | . . . . . 2 2 . . . . . . . . . . . . . . . . . . . . . Scan Component 3 | . . . . . 1 2 . . . . . . . . . . . . . . . . . . . . . Repair 1 | . . . . . 1 . . . . . . . . . . . . . . . . . . . . . . Recycling Unit Hacks 3 | . 1 . . . 1 1 . . . . . . . . . . . . . . . . . . . . . Retrieve Matter 1 | . . . . . . 1 . . . . . . . . . . . . . . . . . . . . . Retrieve Components 2 | . 1 . . . 1 . . . . . . . . . . . . . . . . . . . . . . Scanalyzer . | . . . . . . . . . . . . . . . . . . . . . . . . . . . . Garrison Access Hacks . | . . . . . . . . . . . . . . . . . . . . . . . . . . . . Unauthorized Hacks 8 | . 2 . . . 5 . . . . . 1 . . . . . . . . . . . . . . . . Terminals 2 | . 1 . . . 1 . . . . . . . . . . . . . . . . . . . . . . Botnet 2 | . 1 . . . 1 . . . . . . . . . . . . . . . . . . . . . . Fabricators . | . . . . . . . . . . . . . . . . . . . . . . . . . . . . Repair Stations . | . . . . . . . . . . . . . . . . . . . . . . . . . . . . Recycling Units 6 | . 1 . . . 4 . . . . . 1 . . . . . . . . . . . . . . . . Reject 1 | . . . . . 1 . . . . . . . . . . . . . . . . . . . . . . Recyclers 1 | . . . . . 1 . . . . . . . . . . . . . . . . . . . . . . Mask 2 | . . . . . 1 . . . . . 1 . . . . . . . . . . . . . . . . Tunnel 2 | . 1 . . . 1 . . . . . . . . . . . . . . . . . . . . . . Scanalyzers . | . . . . . . . . . . . . . . . . . . . . . . . . . . . . Garrison Access . | . . . . . . . . . . . . . . . . . . . . . . . . . . . . Data Cores Recovered 1 | . . . . . 1 . . . . . . . . . . . . . . . . . . . . . . Used . | . . . . . . . . . . . . . . . . . . . . . . . . . . . . Hacking Detections 29 | . 6 . . . 10 8 1 . . . 3 . . . . . . . . . . . . . 1 . . Full Trace Events 5 | . . . . . 2 2 . . . . 1 . . . . . . . . . . . . . . . . Feedback Events . | . . . . . . . . . . . . . . . . . . . . . . . . . . . . Feedback Blocked . | . . . . . . . . . . . . . . . . . . . . . . . . . . . . Robot Schematics Acquired 8 | . . . . . . . . . 4 . . . . 4 . . . . . . . . . . . . . Robots Built . | . . . . . . . . . . . . . . . . . . . . . . . . . . . . Authchips . | . . . . . . . . . . . . . . . . . . . . . . . . . . . . Time . | . . . . . . . . . . . . . . . . . . . . . . . . . . . . Total Robot Build Rating . | . . . . . . . . . . . . . . . . . . . . . . . . . . . . Part Schematics Acquired 24 | . 1 . . . . . . . 8 . . . . 15 . . . . . . . . . . . . . Parts Built 3 | . . . . . . 1 . . . . 2 . . . . . . . . . . . . . . . . Authchips . | . . . . . . . . . . . . . . . . . . . . . . . . . . . . Time 230 | . . . . . . 51 . . . . 179 . . . . . . . . . . . . . . . . Total Part Build Rating 10 | . . . . . . 1 . . . . 9 . . . . . . . . . . . . . . . . Parts Repaired 1 | . . . . . 1 . . . . . . . . . . . . . . . . . . . . . . Time 38 | . . . . . 38 . . . . . . . . . . . . . . . . . . . . . . Parts Recycled . | . . . . . . . . . . . . . . . . . . . . . . . . . . . . Recycled Matter . | . . . . . . . . . . . . . . . . . . . . . . . . . . . . Retrieved Matter . | . . . . . . . . . . . . . . . . . . . . . . . . . . . . Retrieved Components 10 | . . . . . 10 . . . . . . . . . . . . . . . . . . . . . . Parts Scanalyzed . | . . . . . . . . . . . . . . . . . . . . . . . . . . . . Part Schematics Acquired . | . . . . . . . . . . . . . . . . . . . . . . . . . . . . Parts Damaged . | . . . . . . . . . . . . . . . . . . . . . . . . . . . . Bothacking | -11 -10 -10 -10 -9 -8 -7 -7 -7 -7 -6 -6 -6 -6 -6 -6 -5 -5 -5 -5 -5 -4 -4 -4 -4 -3 -3 -3 ------------ Run | Yrd Mat Min Exi Min Mat Fac Low Low Dat Pro Fac Low Low Zio Dee Pro Fac Upp Upp War Pro Fac Arm Lab Res Qua Sec Used RIF Installer . | . . . . . . . . . . . . . . . . . . . . . . . . . . . . Robots Hacked . | . . . . . . . . . . . . . . . . . . . . . . . . . . . . Non-combat . | . . . . . . . . . . . . . . . . . . . . . . . . . . . . Combat . | . . . . . . . . . . . . . . . . . . . . . . . . . . . . Robot Hacks Applied . | . . . . . . . . . . . . . . . . . . . . . . . . . . . . Relay Couplers Released . | . . . . . . . . . . . . . . . . . . . . . . . . . . . . Fabnet Peak Effective % . | . . . . . . . . . . . . . . . . . . . . . . . . . . . . Robots Rewired 8 | . . . . . . . 3 . . . . . . . . . . . . 5 . . . . . . . Allies Hacked . | . . . . . . . . . . . . . . . . . . . . . . . . . . . . Hacks Repelled . | . . . . . . . . . . . . . . . . . . . . . . . . . . . . Allies | -11 -10 -10 -10 -9 -8 -7 -7 -7 -7 -6 -6 -6 -6 -6 -6 -5 -5 -5 -5 -5 -4 -4 -4 -4 -3 -3 -3 -------- Run | Yrd Mat Min Exi Min Mat Fac Low Low Dat Pro Fac Low Low Zio Dee Pro Fac Upp Upp War Pro Fac Arm Lab Res Qua Sec Total Allies 22 | . . . . 3 . . 3 . . . . . . . . . . . . 5 . . . 10 . . 1 Largest Group 10 | . . . . 3 . . 3 3 2 1 1 . . . . . . . . 5 1 1 . 10 10 10 1 Highest-Rated Group 2340 | . . . . 40 . . 93 93 62 31 26 . . . . . . . . 253 65 65 . 2340 2340 2340 234 Highest-Rated Ally 234 | . . . . 16 . . 31 31 31 31 26 . . . . . . . . 65 65 65 . 234 234 234 234 Total Orders 48 | . . . . . . . . . 3 2 . . . . . . 3 . . 22 12 5 1 . . . . STAY 17 | . . . . . . . . . 2 1 . . . . . . . . . 6 6 2 . . . . . FOLLOW 11 | . . . . . . . . . 1 1 . . . . . . . . . 2 5 2 . . . . . EXPLORE 7 | . . . . . . . . . . . . . . . . . . . . 7 . . . . . . . RETURN 13 | . . . . . . . . . . . . . . . . . 3 . . 7 1 1 1 . . . . Ally Attacks 347 | . . . . 30 . . . 15 12 . 11 . . . . . . . . 22 . . . . 10 247 . Total Damage 26243 | . . . . 285 . . . 107 130 . 191 . . . . . . . . 827 . . . . 829 23874 . Kills 140 | . . . . 4 . . . 2 1 . 1 . . . . . . . . 3 . . . . 8 121 . Allies Corrupted 10 | . . . . . . . . . . . . . . . . . . . . . . . . . . 9 1 Allies Melted . | . . . . . . . . . . . . . . . . . . . . . . . . . . . . Intel | -11 -10 -10 -10 -9 -8 -7 -7 -7 -7 -6 -6 -6 -6 -6 -6 -5 -5 -5 -5 -5 -4 -4 -4 -4 -3 -3 -3 ------- Run | Yrd Mat Min Exi Min Mat Fac Low Low Dat Pro Fac Low Low Zio Dee Pro Fac Upp Upp War Pro Fac Arm Lab Res Qua Sec Robot Analysis Total 139 | . 1 . . . 4 . . . 134 . . . . . . . . . . . . . . . . . . Derelict Logs Recovered 14 | . . 1 . 1 . . 3 1 . . . 1 1 . . 2 . 1 1 . 2 . . . . . . Drone Launches 15 | . . . . . . . . . . . . . . . . . 3 . . 3 3 3 3 . . . . Drone Recoveries 15 | . . . . . . . . . . . . . . . . . 3 . . 3 3 3 3 . . . . Exploration | -11 -10 -10 -10 -9 -8 -7 -7 -7 -7 -6 -6 -6 -6 -6 -6 -5 -5 -5 -5 -5 -4 -4 -4 -4 -3 -3 -3 ------------- Run | Yrd Mat Min Exi Min Mat Fac Low Low Dat Pro Fac Low Low Zio Dee Pro Fac Upp Upp War Pro Fac Arm Lab Res Qua Sec Turns Passed 44534 | 124 2156 1190 982 1270 4361 1467 1285 1160 223 1138 813 1476 1927 2160 4741 1646 318 2592 3237 1156 2906 595 1109 1215 803 1843 641 Spaces Moved 16064 | 55 612 326 306 370 1128 541 798 772 125 763 253 691 902 1014 1586 648 99 1009 1148 426 904 79 337 199 306 442 225 Core 8 | 8 . . . . . . . . . . . . . . . . . . . . . . . . . . . Treads 3211 | 47 612 326 306 370 1128 124 . . . . . . . . . . . . . . . . . . . 94 204 Legs 5806 | . . . . . . . . . . . . . . . 296 648 99 1009 1148 426 904 79 337 199 306 348 7 Wheels 7025 | . . . . . . 417 798 772 125 763 253 691 902 1014 1290 . . . . . . . . . . . . Hover . | . . . . . . . . . . . . . . . . . . . . . . . . . . . . Flight . | . . . . . . . . . . . . . . . . . . . . . . . . . . . . Fastest Speed 30 | 50 160 320 320 320 312 145 145 145 145 145 160 190 190 190 160 240 240 240 240 240 240 226 226 185 182 182 30 Average Speed 224 | 147 283 320 320 320 315 217 145 145 151 145 172 193 204 204 195 240 240 240 240 240 240 233 228 268 210 237 233 Slowest Speed 335 | 160 320 320 320 320 320 320 145 145 160 145 190 205 205 205 270 240 240 240 240 240 240 240 270 335 226 270 240 Overloaded Moves . | . . . . . . . . . . . . . . . . . . . . . . . . . . . . Propulsion Burnouts . | . . . . . . . . . . . . . . . . . . . . . . . . . . . . Robots Hopped . | . . . . . . . . . . . . . . . . . . . . . . . . . . . . Cave-ins Triggered 2 | . . . . . . . . . . . 1 . . . . . . . . . . . . . . . 1 Teleports 3 | . . . . . . . . . . . . . . . . . . . . . . . . . . . 3 Spacefolds 5 | . . . . . . . . . . . . . . . . . . . . . . . . . . . 5 Exploration Rate (%) 65 | 6 98 90 70 87 74 19 86 89 78 85 5 78 94 84 83 79 7 97 97 95 92 3 37 96 14 48 30 Regions Visited 27 Branch Regions 20 Pre-discovered Areas 29 | . 1 . 1 . 1 . . . 25 . . . . . . . . . . . 1 . . . . . . Known Exits Taken 18 | . . . . . . 1 1 1 1 1 1 1 1 . . 1 1 1 1 1 1 1 1 1 1 . . Unknown Exits Taken 9 | 1 1 1 1 1 1 . . . . . . . . 1 1 . . . . . . . . . . 1 . Scrap Searched 31 | . . 1 . 2 . . 3 2 . 1 . 2 2 4 . 2 . 4 4 . 4 . . . . . . Spaces Dug 195 | . . 1 . 3 37 13 3 2 . 1 18 1 1 3 4 8 1 21 20 4 1 14 10 . 2 2 25 Terrain Destroyed 1155 | . . 5 . 4 170 16 3 2 41 1 72 28 16 3 52 10 8 34 26 6 20 28 47 13 13 206 331 Melee 38 | . . . . . . 8 3 2 . 1 15 1 1 3 4 . . . . . . . . . . . . Projectile 374 | . . 5 . 4 63 8 . . . . 9 . . . 28 10 8 34 26 6 20 28 47 13 13 15 37 AOE 743 | . . . . . 107 . . . 41 . 48 27 15 . 20 . . . . . . . . . . 191 294 Terrain Rammed . | . . . . . . . . . . . . . . . . . . . . . . . . . . . . Walls Destroyed . | . . . . . . . . . . . . . . . . . . . . . . . . . . . . Machines Disabled . | . . . . . . . . . . . . . . . . . . . . . . . . . . . . Actions | -11 -10 -10 -10 -9 -8 -7 -7 -7 -7 -6 -6 -6 -6 -6 -6 -5 -5 -5 -5 -5 -4 -4 -4 -4 -3 -3 -3 --------- Run | Yrd Mat Min Exi Min Mat Fac Low Low Dat Pro Fac Low Low Zio Dee Pro Fac Upp Upp War Pro Fac Arm Lab Res Qua Sec Total 22645 | 81 820 389 311 445 1635 732 883 803 145 784 525 780 964 1054 3026 726 145 1130 1589 538 1597 388 508 817 441 1102 287 Wait 4444 | 4 67 18 . 56 230 69 12 18 9 6 181 9 22 . 1128 71 21 90 396 22 649 238 46 516 95 470 1 Move 16026 | 54 611 325 305 369 1127 540 797 771 124 762 251 690 901 1013 1585 647 98 1008 1147 425 903 78 336 198 305 441 215 Hop . | . . . . . . . . . . . . . . . . . . . . . . . . . . . . Pick Up 272 | 9 17 3 3 5 30 17 2 2 . 2 6 17 7 7 54 . 3 1 3 1 3 3 2 26 13 34 2 Fast Attach 53 | 5 1 . . . 8 4 . . . . 3 1 . 1 4 . 1 1 4 3 1 1 3 4 1 4 3 Attach 83 | 2 3 . . . 9 4 . . . . 8 3 . . 19 . . . 1 . . 1 . 1 6 15 11 Detach 21 | . . . . . 2 . . . . . 2 . . . 3 . . 1 1 1 3 1 . 2 1 4 . Swap 225 | . 3 6 1 4 31 15 14 7 7 8 17 26 13 6 24 . 2 2 1 1 5 2 3 6 7 12 2 Drop 282 | . 6 . 2 6 36 19 2 1 . 2 1 8 9 6 64 1 2 2 13 5 9 6 6 26 2 41 7 Fire 1037 | 7 112 37 . 5 162 51 18 2 4 3 40 10 8 . 141 7 18 25 23 16 24 58 102 38 11 76 39 Melee 81 | . . . . . . 9 3 2 1 1 15 16 4 21 4 . . . . . . . . . . 5 . Ram . | . . . . . . . . . . . . . . . . . . . . . . . . . . . . Kick . | . . . . . . . . . . . . . . . . . . . . . . . . . . . . Crush . | . . . . . . . . . . . . . . . . . . . . . . . . . . . . Escape Stasis 22 | . . . . . . 4 . . . . 1 . . . . . . . . . . . 10 . . . 7 Rewire 99 | . . . . . . . 35 . . . . . . . . . . . . 64 . . . . . . . Trap . | . . . . . . . . . . . . . . . . . . . . . . . . . . . . Miscellaneous . | . . . . . . . . . . . . . . . . . . . . . . . . . . . . Route ------- -11/Scrapyard -10/Materials (discovered 4 exits: [*Mat x3] / [*Min]) -10/Mines (discovered 3 exits: [*Mat x2] / *Exi) -10/Exiles -9/Mines (discovered 2 exits: *Mat x2) -8/Materials (discovered 3 exits: *Fac x3) -7/Factory (discovered 4 exits: *Fac / Sto / *Low x2) -7/Lower Caves (discovered 2 exits: *Low / *Dat) -7/Lower Caves (discovered 2 exits: *Fac / *Dat) -7/Data Miner -6/Proximity Caves -6/Factory (discovered 2 exits: *Low / Ext) -6/Lower Caves -6/Lower Caves (discovered 2 exits: *Fac / *Zio) -6/Zion (discovered 2 exits: [*Dee] / *Pro) -6/Deep Caves -5/Proximity Caves -5/Factory (discovered 2 exits: *Upp x2) -5/Upper Caves -5/Upper Caves (discovered 2 exits: *Fac / *War) -5/Warlord -4/Proximity Caves -4/Factory -4/Armory -4/Lab -3/Research -3/Quarantine -3/Section 7 History --------- Turn | Location | Event 21 | -11/Scrapyard | Discovered new exit (range 15) 125 | -11/Scrapyard | Entered Materials 314 | -10/Materials | Build established: Mutant 314 | -10/Materials | Discovered new exit (range 14) 625 | -10/Materials | Discovered new exit (range 8) 1079 | -10/Materials | Discovered new exit (range 16) 1509 | -10/Materials | Discovered new exit (range 15) 1941 | -10/Materials | Core integrity fell below 50% 1981 | -10/Materials | Lost 3 parts (1p1n1w) 2281 | -10/Materials | Entered Mines 2817 | -10/Mines | Discovered new exit (range 15) 2916 | -10/Mines | Discovered new exit (range 4) 3138 | -10/Mines | Excavation squad dispatched 3138 | -10/Mines | A large section of the Mines collapsed 3402 | -10/Mines | Learned Materials security intel 3458 | -10/Mines | Deemed a non-threat by the Exiles lab entrance 3458 | -10/Mines | Discovered new exit (range 5) 3471 | -10/Mines | Entered Exiles 3548 | -10/Exiles | Met 8R-AWN 3603 | -10/Exiles | Met EX-HEX 3731 | -10/Exiles | Met EX-DEC 3743 | -10/Exiles | Learned location of Zion (-6) 3811 | -10/Exiles | Met EX-BIN 3849 | -10/Exiles | Aligned with FarCom system 3852 | -10/Exiles | Given EX-Vault access code 3926 | -10/Exiles | Opened EX-Vault 3948 | -10/Exiles | Found XL Autogun Array 4020 | -10/Exiles | Warned to stay clear of 0b10 Research branches 4418 | -10/Exiles | Discovered new exit (range 14) 4453 | -10/Exiles | Left Exiles lab with XL Autogun Array 4453 | -10/Exiles | Entered Mines 4534 | -9/Mines | Met a Derelict shopkeep closing up shop 4740 | -9/Mines | Assisted by bots powering up and referring to "LRC-V3" 4849 | -9/Mines | Lost 3 allies 5199 | -9/Mines | Discovered new exit (range 10) 5275 | -9/Mines | Learned 2 Materials zone layouts 5323 | -9/Mines | Discovered new exit (range 8) 5377 | -9/Mines | Found a hidden stash of uninstalled traps 5723 | -9/Mines | Entered Materials 5723 | -8/Materials | Evolved 4 slots: Utility x4 6026 | -8/Materials | Build established: Scavenger-Skirmisher 6119 | -8/Materials | Central database locked down 7141 | -8/Materials | Discovered new exit (range 8) 7236 | -8/Materials | Core integrity fell below 50% 7562 | -8/Materials | Destroyed 8 combat bots 8026 | -8/Materials | Build established: Mutant 8283 | -8/Materials | Discovered new exit (range 10) 8536 | -8/Materials | Discovered new exit (range 8) 9323 | -8/Materials | First assault squad dispatched 9800 | -8/Materials | Repaired Hvy. Armor Plating 10084 | -8/Materials | Entered Factory 10084 | -7/Factory | Evolved 2 slots: Utility x2 10260 | -7/Factory | Identified exit to Storage 10260 | -7/Factory | Identified exit to Lower Caves 10478 | -7/Factory | Build established: Hacker-Mutant 10838 | -7/Factory | Discovered new exit (range 9) 10867 | -7/Factory | Identified exit to Factory 10942 | -7/Factory | Build established: Skirmisher 11437 | -7/Factory | Fabricated Cargo Storage Unit? 11551 | -7/Factory | Entered Lower Caves 11598 | -7/Lower Caves | Learned 8 Factory zone layouts 11767 | -7/Lower Caves | Learned 4 Factory zone layouts 11861 | -7/Lower Caves | Build established: Scavenger-Skirmisher 11887 | -7/Lower Caves | Learned Factory interactive machine intel 11980 | -7/Lower Caves | A Derelict revealed a hidden shortcut to meet someone special 11988 | -7/Lower Caves | Identified exit to Data Miner 12252 | -7/Lower Caves | Encountered a Warlord checkpoint 12536 | -7/Lower Caves | Discovered new exit (range 15) 12720 | -7/Lower Caves | Attacked by a delusional Derelict stockpiling Unaware 12834 | -7/Lower Caves | Identified exit to Lower Caves 12836 | -7/Lower Caves | Entered another Lower Caves area 12836 | -7/Lower Caves | Accompanied by 3 allies 12908 | -7/Lower Caves | Discovered exit to Factory (range 14) 13061 | -7/Lower Caves | Encountered a Warlord checkpoint 13545 | -7/Lower Caves | Learned 4 Factory zone layouts 13988 | -7/Lower Caves | Discovered exit to Data Miner (range 5) 13996 | -7/Lower Caves | Entered Data Miner 13996 | -7/Data Miner | Accompanied by 2 allies 13996 | -7/Data Miner | Discovered new exit (range 6) 14024 | -7/Data Miner | Met Data Miner 14098 | -7/Data Miner | Learned location of Section 7 (-3) 14098 | -7/Data Miner | Acquired the access code to Warlord's prototype stash 14126 | -7/Data Miner | Received God Mode back door access code from Data Miner 14149 | -7/Data Miner | Interfaced with the Data Conduit 14217 | -7/Data Miner | Identified exit to Proximity Caves 14219 | -7/Data Miner | Entered Proximity Caves 14219 | -6/Proximity Caves | Accompanied by 1 ally 15050 | -6/Proximity Caves | Discovered exit to Factory (range 13) 15357 | -6/Proximity Caves | Entered Factory 15357 | -6/Factory | Accompanied by 1 ally 15357 | -6/Factory | Evolved 2 slots: Power x1, Utility x1 15358 | -6/Factory | Identified exit to Extension 15358 | -6/Factory | Identified exit to Lower Caves 15359 | -6/Factory | Loaded intel: 278 machine locations 15360 | -6/Factory | Loaded intel: 52 interactive machine locations 15529 | -6/Factory | Fabricated Cargo Storage Unit (x1) 15562 | -6/Factory | Fabricated Com. HERF Cannon? 15723 | -6/Factory | Garrison activated, responded to threat 15823 | -6/Factory | Garrison activated, responded to threat 15831 | -6/Factory | Lost 3 parts (2p1u) 15988 | -6/Factory | Crushed by falling debris 16057 | -6/Factory | First assault squad dispatched 16170 | -6/Factory | Entered Lower Caves 16439 | -6/Lower Caves | Attacked by a delusional Derelict stockpiling parts 16937 | -6/Lower Caves | Build established: Hauler-Skirmisher 17275 | -6/Lower Caves | Discovered new exit (range 6) 17286 | -6/Lower Caves | Identified exit to Lower Caves 17454 | -6/Lower Caves | Learned 4 Factory zone layouts 17646 | -6/Lower Caves | Entered another Lower Caves area 17649 | -6/Lower Caves | Discovered new exit (range 12) 17773 | -6/Lower Caves | Identified exit to Factory 18629 | -6/Lower Caves | Found Prototype Device 18971 | -6/Lower Caves | Encountered a Warlord checkpoint 18988 | -6/Lower Caves | Identified exit to Zion 19573 | -6/Lower Caves | Entered Zion 19574 | -6/Zion | Identified exit to Proximity Caves 19614 | -6/Zion | Received a visual enhancement algorithm 20209 | -6/Zion | Learned Factory garrison access intel 20228 | -6/Zion | Build established: Hauler-Assassin 20509 | -6/Zion | Learned Factory repair station intel 20657 | -6/Zion | Found Prototype Launcher 20680 | -6/Zion | Identified Heart of Steel 20694 | -6/Zion | Identified Gui. Missile Launcher 20776 | -6/Zion | Given the Hacking Drone Bay 20781 | -6/Zion | Found Prototype Device 20812 | -6/Zion | Identified Hacking Drone Bay 20954 | -6/Zion | Build established: Hauler-Mutant 21325 | -6/Zion | Discovered new exit (range 4) 21729 | -6/Zion | Saw the warning signs outside the Deep Caves entrance 21733 | -6/Zion | Entered Deep Caves 21982 | -6/Deep Caves | Attacked by Z-Imprinter 22011 | -6/Deep Caves | Destroyed Z-Imprinter 22057 | -6/Deep Caves | Found Prototype Protection 22080 | -6/Deep Caves | Identified Zio. Weapon Casing 22180 | -6/Deep Caves | Core integrity fell below 50% 22183 | -6/Deep Caves | Z-Facility disabled 22403 | -6/Deep Caves | Found Zio. Weapon Casing 22425 | -6/Deep Caves | Found Zio. Weapon Casing 22579 | -6/Deep Caves | Found Zio. Weapon Casing 22695 | -6/Deep Caves | Found Prototype Protection 22700 | -6/Deep Caves | Found Prototype Protection 22700 | -6/Deep Caves | Identified Zio. Heavy Carapace (x2) 22863 | -6/Deep Caves | Discovered new exit (range 12) 23008 | -6/Deep Caves | Found Zio. Weapon Casing 24221 | -6/Deep Caves | Destroyed AG-21802 24377 | -6/Deep Caves | Spotted AG-50794 24547 | -6/Deep Caves | Destroyed AG-50794 24789 | -6/Deep Caves | Triggered Deep Caves wall 24789 | -6/Deep Caves | Spotted AS-85173 24789 | -6/Deep Caves | Spotted AS-04775 24795 | -6/Deep Caves | Destroyed AS-85173 24799 | -6/Deep Caves | Exposed GOLEM chamber 24802 | -6/Deep Caves | Destroyed AS-04775 24803 | -6/Deep Caves | Core integrity fell below 20% 24830 | -6/Deep Caves | Destroyed 34 combat bots 24833 | -6/Deep Caves | Lost 4 parts (4u) 24893 | -6/Deep Caves | Found GOLEM Unit 25072 | -6/Deep Caves | Found GOLEM Unit 25194 | -6/Deep Caves | Found GOLEM Unit 25198 | -6/Deep Caves | Found GOLEM Unit 25203 | -6/Deep Caves | Found GOLEM Unit 25207 | -6/Deep Caves | Found GOLEM Unit 25215 | -6/Deep Caves | Found GOLEM Unit 25219 | -6/Deep Caves | Found GOLEM Unit 25224 | -6/Deep Caves | Found GOLEM Unit 25368 | -6/Deep Caves | Build established: Hauler-Golem 26140 | -6/Deep Caves | Found Cloak of Protection 26288 | -6/Deep Caves | Found GOLEM Unit 26293 | -6/Deep Caves | Found GOLEM Unit 26331 | -6/Deep Caves | Found GOLEM Unit 26474 | -6/Deep Caves | Entered Proximity Caves 27262 | -5/Proximity Caves | Spotted B-75 Beast 27475 | -5/Proximity Caves | Discovered exit to Factory (range 11) 27866 | -5/Proximity Caves | Learned Factory trap positions 28120 | -5/Proximity Caves | Entered Factory 28120 | -5/Factory | Evolved 2 slots: Power x1, Utility x1 28121 | -5/Factory | Identified exit to Upper Caves 28123 | -5/Factory | Loaded intel: 98 trap records 28124 | -5/Factory | Loaded intel: 257 machine locations 28125 | -5/Factory | Loaded intel: 6 repair station locations 28126 | -5/Factory | Loaded intel: 4 garrison access locations 28438 | -5/Factory | Entered Upper Caves 29640 | -5/Upper Caves | Attracted the attention of an 0b10 checkpoint 30208 | -5/Upper Caves | Identified exit to Upper Caves 31030 | -5/Upper Caves | Entered another Upper Caves area 31099 | -5/Upper Caves | Discovered new exit (range 8) 31115 | -5/Upper Caves | Identified exit to Factory 32724 | -5/Upper Caves | Learned Factory emergency access door positions 32762 | -5/Upper Caves | Discovered new exit (range 10) 32808 | -5/Upper Caves | Identified exit to Warlord 33547 | -5/Upper Caves | Attracted the attention of an 0b10 checkpoint 34267 | -5/Upper Caves | Entered Warlord 34455 | -5/Warlord | Discovered new exit (range 59) 34806 | -5/Warlord | Met Warlord 34827 | -5/Warlord | Opened Warlord's prototype stash 34831 | -5/Warlord | Warlord's base attacked by MAIN.C 34835 | -5/Warlord | Found Vortex Chain Reactor 35099 | -5/Warlord | Found Prototype Energy Gun 35099 | -5/Warlord | Identified Vortex Rifle 35110 | -5/Warlord | Found Prototype Energy Gun 35110 | -5/Warlord | Identified Vortex Shotgun 35116 | -5/Warlord | Found Vortex Shotgun 35181 | -5/Warlord | Warlord forces counterattacked 35264 | -5/Warlord | Spotted B-75 Beast 35270 | -5/Warlord | Spotted B-86 Titan 35270 | -5/Warlord | Spotted Striker 35279 | -5/Warlord | Destroyed Striker 35308 | -5/Warlord | Lost 6 allies 35357 | -5/Warlord | Spotted Executioner 35390 | -5/Warlord | Lost 4 allies 35421 | -5/Warlord | Identified exit to Proximity Caves 35423 | -5/Warlord | Entered Proximity Caves 35423 | -4/Proximity Caves | Accompanied by 1 ally 35431 | -4/Proximity Caves | Spotter reported a threat 35730 | -4/Proximity Caves | Spotter reported a threat 35951 | -4/Proximity Caves | Spotter reported a threat 37795 | -4/Proximity Caves | Discovered exit to Factory (range 8) 37865 | -4/Proximity Caves | Learned Research stockpile data 38329 | -4/Proximity Caves | Entered Factory 38329 | -4/Factory | Accompanied by 1 ally 38329 | -4/Factory | Evolved 2 slots: Propulsion x1, Utility x1 38331 | -4/Factory | Loaded intel: 265 machine locations 38579 | -4/Factory | Search patrols dispatched 38702 | -4/Factory | Destroyed 7 combat bots 38725 | -4/Factory | Discovered new exit (range 16) 38842 | -4/Factory | Identified exit to Armory 38924 | -4/Factory | Entered Armory 38925 | -4/Armory | Met VL-GR5, who suggested a friendly competition 38925 | -4/Armory | Loaded intel: 69 machine locations 38987 | -4/Armory | Found Zero-point Reactor 39229 | -4/Armory | VL-GR5 did not survive their latest romp through Armory 39322 | -4/Armory | Destroyed 12 combat bots 39326 | -4/Armory | Lost 3 parts (1p1n1u) 39357 | -4/Armory | Found Corrupted Prototype Processor 39357 | -4/Armory | Identified VL-GR5's Timing Chip 39358 | -4/Armory | System corruption reached 10% 39363 | -4/Armory | Found Corrupted Zero-point Reactor 39375 | -4/Armory | Found Corrupted Prototype Protection 39375 | -4/Armory | Identified Hvy. Regenerative Plating 39385 | -4/Armory | Found Corrupted Prototype Device 39449 | -4/Armory | First assault squad dispatched 39539 | -4/Armory | Destroyed 7 combat bots 40029 | -4/Armory | Discovered new exit (range 3) 40031 | -4/Armory | Identified exit to Lab 40033 | -4/Armory | Entered Lab 40034 | -4/Lab | Discovered new exit (range 9) 40057 | -4/Lab | Identified exit to Research 40071 | -4/Lab | Hidden lab's door opened automatically 40071 | -4/Lab | Sensor layout match revealed 40072 | -4/Lab | Gained access to the hidden lab's interior 40099 | -4/Lab | Decrypted terminal 40105 | -4/Lab | Detected by scanners 40111 | -4/Lab | Confronted by A5 40211 | -4/Lab | Destroyed A5 40234 | -4/Lab | Found Alien Artifact 40234 | -4/Lab | Identified Core Reset Matrix 40234 | -4/Lab | Used Core Reset Matrix 40238 | -4/Lab | Sensed 3 artifacts in vicinity 40272 | -4/Lab | Found Integrated Mediator 40272 | -4/Lab | Installed Integrated Mediator, increased core attachment efficiency 40292 | -4/Lab | Found Core Expander 40292 | -4/Lab | Installed Core Expander, added new Propulsion slot 40319 | -4/Lab | Found Transdimensional Reconstructor 40404 | -4/Lab | Found Prototype Hackware 40409 | -4/Lab | Found Prototype Protection 40410 | -4/Lab | Identified Exp. Powered Armor 40417 | -4/Lab | Found Prototype Energy Gun 40423 | -4/Lab | Found Prototype Energy Gun 40424 | -4/Lab | Identified Hyp. EM Gauss Rifle 40426 | -4/Lab | Identified Tachyon Dispersion Ray 40468 | -4/Lab | Found Prototype Special Weapon 40469 | -4/Lab | Identified Gui. Remote Datajack 40498 | -4/Lab | Discovered exit to Research (range 13) 40524 | -4/Lab | Found Prototype Hackware 40531 | -4/Lab | Found Prototype Hackware 41247 | -4/Lab | Identified VL-GR5's Exoskeleton "Deathgrip" 41248 | -4/Lab | Attached VL-GR5's Exoskeleton "Deathgrip", gained temporary slots: Weapon x3 41248 | -4/Lab | Entered Research 41248 | -3/Research | Accompanied by 10 allies 41248 | -3/Research | Evolved 2 slots: Utility x2 41390 | -3/Research | Identified Quantum Router 41391 | -3/Research | Identified Exp. Hacking Suite 41879 | -3/Research | Discovered new exit (range 5) 41885 | -3/Research | Identified exit to Quarantine 42022 | -3/Research | Found Unknown Launcher 42039 | -3/Research | Intercept squad dispatched 42051 | -3/Research | Entered Quarantine 42051 | -3/Quarantine | Accompanied by 10 allies 42052 | -3/Quarantine | Maximum security lockdown engaged 42052 | -3/Quarantine | Detected hypermatrix surge 42052 | -3/Quarantine | Sensed 14 artifacts in vicinity 42198 | -3/Quarantine | Spotted Striker 42200 | -3/Quarantine | Identified Fusion Bomb Launcher 42201 | -3/Quarantine | Spotted Striker 42205 | -3/Quarantine | Allies destroyed Striker 42213 | -3/Quarantine | Allies destroyed Striker 42430 | -3/Quarantine | Spotted Striker 42434 | -3/Quarantine | Allies destroyed Striker 42447 | -3/Quarantine | Spotted Striker 42447 | -3/Quarantine | Allies destroyed Striker 42633 | -3/Quarantine | Spotted Executioner 42634 | -3/Quarantine | Destroyed Executioner 42634 | -3/Quarantine | Spotted Striker 42645 | -3/Quarantine | Allies destroyed Striker 42667 | -3/Quarantine | Spotted Executioner 42669 | -3/Quarantine | Allies destroyed Executioner 42678 | -3/Quarantine | Destroyed 10 combat bots 42714 | -3/Quarantine | Lost 5 allies 42883 | -3/Quarantine | Spotted Executioner 42893 | -3/Quarantine | Spotted Executioner 42900 | -3/Quarantine | Destroyed Executioner 42904 | -3/Quarantine | Destroyed Executioner 42908 | -3/Quarantine | Sterilization system engaged 42908 | -3/Quarantine | Non-combat units ordered to evacuate 42934 | -3/Quarantine | Lost 4 allies 42952 | -3/Quarantine | Destroyed 31 combat bots 43008 | -3/Quarantine | Combat units ordered to evacuate 43093 | -3/Quarantine | Found Core Stripper 43208 | -3/Quarantine | Ambient heat levels rising (+10) 43230 | -3/Quarantine | Found Terrabomb 43241 | -3/Quarantine | Found Terrabomb 43272 | -3/Quarantine | Used Terrabomb 43272 | -3/Quarantine | Spotted Alpha 7 43285 | -3/Quarantine | Found Sigix Terminator 43326 | -3/Quarantine | Destroyed Alpha 7 43352 | -3/Quarantine | Found Matter Drive 43358 | -3/Quarantine | Ambient heat levels rising (+10) 43458 | -3/Quarantine | Found Transdimensional Reconstructor 43468 | -3/Quarantine | Found Hpw. Transdimensional Reconstructor 43471 | -3/Quarantine | Found Hpw. Transdimensional Reconstructor 43476 | -3/Quarantine | Found Hpw. Transdimensional Reconstructor 43489 | -3/Quarantine | Found Dimensional Node Initializer 43508 | -3/Quarantine | Ambient heat levels rising (+10) 43577 | -3/Quarantine | Spotted Fortress 43612 | -3/Quarantine | Destroyed Fortress 43617 | -3/Quarantine | Found Prototype Device 43618 | -3/Quarantine | Identified Exp. Force Field 43625 | -3/Quarantine | Found Prototype Reactor 43658 | -3/Quarantine | Ambient heat levels rising (+10) 43698 | -3/Quarantine | Identified Vortex Chain Reactor 43808 | -3/Quarantine | Ambient heat levels rising (+10) 43879 | -3/Quarantine | Discovered new exit (range 6) 43894 | -3/Quarantine | Entered Section 7 43894 | -3/Section 7 | Accompanied by 1 ally 43895 | -3/Section 7 | Maximum security lockdown engaged 43895 | -3/Section 7 | Sensed 24 artifacts in vicinity 43913 | -3/Section 7 | Build established: Hauler-Tank 44034 | -3/Section 7 | Spotted Striker 44047 | -3/Section 7 | Spotted Executioner 44049 | -3/Section 7 | Warped through subspace 44070 | -3/Section 7 | Found Spacefold Activator 44115 | -3/Section 7 | Scanned by Researcher 44115 | -3/Section 7 | Spotted Investigator 44116 | -3/Section 7 | Spotted Striker 44116 | -3/Section 7 | Spotted Striker 44116 | -3/Section 7 | Spotted Striker 44119 | -3/Section 7 | Spotted Striker 44119 | -3/Section 7 | Spotted Executioner 44119 | -3/Section 7 | Warped through subspace 44206 | -3/Section 7 | Crushed by falling debris 44291 | -3/Section 7 | Warped through subspace 44327 | -3/Section 7 | Core integrity fell below 50% 44336 | -3/Section 7 | Spotted Executioner 44351 | -3/Section 7 | Build established: Hauler-Gunner 44355 | -3/Section 7 | Spotted Executioner 44361 | -3/Section 7 | Spotted B-99 Colossus 44379 | -3/Section 7 | System corruption reached 10% 44474 | -3/Section 7 | Lost 6 parts (2p1u3w) 44480 | -3/Section 7 | Core integrity fell below 20% 44500 | -3/Section 7 | Integrated with Sigix Exoskeleton 44524 | -3/Section 7 | Fired Sigix Terminator 44524 | -3/Section 7 | Destroyed Executioner 44524 | -3/Section 7 | Destroyed Executioner 44524 | -3/Section 7 | Destroyed Executioner 44524 | -3/Section 7 | Destroyed Executioner 44530 | -3/Section 7 | Destroyed Executioner 44535 | -3/Section 7 | Destroyed by G-67 Veteran with Plasma Rifle Last Messages --------------- 44524_ G-67 Veteran destroyed. 44524_ Executioner destroyed. 44524_ Destroyed Unknown Energy Gun. 44524_ P-80 Master destroyed. 44524_ Destroyed Prototype Device. 44524_ Destroyed Prototype Leg. 44524_ Executioner destroyed. 44525_ Penetrated by Slug. 44525_ M-36 Artificer repairs I-47 Archangel. 44526_ Extracted 2 energy. 44527_ Acquired Sigix Sheargun. 44527_ Penetrated by Slug. 44528_ Extracted 2 energy. 44529_ Acquired Vortex Shotgun. 44529_ Slug penetrates Machine. 44530_ Entropic reaction triggered in Prototype Reactor. 44530_ Executioner destroyed. 44530_ Destroyed Unknown Wheel. 44533_ Quantum Shear penetrates G-67 Veteran. 44533_ Destroyed Unknown Device. Map ----- +----------------------------------------------------+ | """"""""""""" "???" ??????????????? | | "??? ????????????? | | " """" ???????????? | | " ???????????? | | """ ??????????? | | " ??????????? | | ??????????? | | ???????????? | | ???????????? | | ???????????? | | !! "?????????????? | | ";; !|*[= ????????????? | | " ; ; =%=p! m ??????????? | | ############"""";;;;; ;;;; % ;;;;""""#?????????? | | ??????????? ; g ; #????????? | | ??????????# ; [ ; ##???????? | | ??????????# ; g ; #???????? | | ?????????## ; ; #??????? | | ????????#### ; ; ##?????? | | ????????#### ; ; #?????? | | ????????##### ; i ; ##?????? | | ???????######## ; ; #####????? | | ???????########### ; ; ########????? | | ???????############# ; ! ; ##########????? | | ???????################ ! #############????? | | ???????################ [X = [ "#############????? | | ??????################# !!!]! "##############???? | | ???????################ G #*[ "#############????? | | ???????################ ### "#############????? | | ???????######################################????? | | ???????###################### ###############????? | | ???????######################################????? | | ????????####################################?????? | | ????????####################################?????? | | ????????####################################?????? | | ?????????##################################??????? | | ??????????################################???????? | | ??????????################################???????? | | ???????????##############################????????? | | ????????????############################?????????? | | ?????????????##########################??????????? | | ???????????????#######################???????????? | | ????????????????####################?????????????? | | ??????????????????#################??????????????? | | ?????????????????????###########?????????????????? | | ??????????????????????????#??????????????????????? | | ?????????????????????????????????????????????????? | | ?????????????????????????????????????????????????? | | ?????????????????????????????????????????????????? | | ?????????????????????????????????????????????????? | +----------------------------------------------------+ Best States ------------- Heat Dissipation 136 Coolant Potential 65 Energy Generation 83 Energy Capacity 4100 Matter Stores 300 Matter Capacity 300 Sight Range 16 Robot Scan Range 16 Terrain Scan Range 16 Terrain Scan Density 10 Cloak Strength 5 Additional Mass Support 20 Armor Coverage 2200 Resistance: KI 50 Resistance: TH 50 Resistance: EX 50 Resistance: EM 50 Resistance: I 50 Resistance: S 50 Resistance: P 50 Weapon Shielding 100 Phase Shifting 8 Evasion (%) 48 Targeting Accuracy 8 Core Analysis 8 Recoil Reduction 6 Kinecelleration 40 Offensive Hacking 20 Defensive Hacking 25 Item Schematics ----------------- None Robot Schematics ------------------ None Fabricated ------------ Cargo Storage Unit | x1 | -7/Factory Cargo Storage Unit | x1 | -6/Factory Com. HERF Cannon | x1 | -6/Factory | Preloaded Alien Tech Used ----------------- Core Reset Matrix Integrated Mediator Core Expander Terrabomb Core Stripper High-powered Transdimensional Reconstructor Spacefold Activator Matter Drive Sigix Exoskeleton Sigix Sheargun Sigix Terminator Achievements -------------- None Challenges ------------ None Game ------ Seed SpectralSapperComputer Manual? 0 Play Time 07:18:06 Cumulative 547.5 hours Start 2024.05.25 @ 18:50:22 End 2024.05.29 @ 21:50:02 Sessions 33 Manual Loads 0 Difficulty Rogue Special Mode None Game No. 109 Rogue 102 Adventurer 1 Explorer 6 Win Type - Total 46 Types 16/4/14/1/1/1/7/1/1 Lore% 89 Gallery% 92 Achievement% 87 Wizard Run 0 Options --------- Layout 0 ASCII 0 Keyboard 0 Movement Numpad Keybinds 0 Fullscreen 1 Font 24/Smallcaps Map View 76x50 Zoom Use 0% Tactical HUD 1 Map Filters NONE Filters NONE Steam 1 RUN: a0e3d15e-9165-463c-b79c-9525db0573ff